[Event "Titled Tuesday Blitz April 19 Late 2022"]
[White "Golubev, Mikhail"]
[Black "Barria Zuniga, Daniel"]
[WhiteFideId "14100983"]
[BlackFideId "3400816"]
[WhiteElo "2374"]
[BlackElo "2414"]
[Result "1-0"]
[Round "09"]
[TimeControl "180+1"]
[Date "2022.04.19"]
[WhiteClock "0:00:21"]
[BlackClock "0:00:09"]

1. e4 {[%clk 0:02:56]}  e6 {[%clk 0:02:55]} 2. d4 {[%clk 0:02:55]}  d5 {[%clk 0:02:54]} 3. Nc3 {[%clk 0:02:56]}  Bb4 {[%clk 0:02:54]} 4. e5 {[%clk 0:02:54]}  Ne7 {[%clk 0:02:53]} 5. a3 {[%clk 0:02:53]}  Bxc3+ {[%clk 0:02:53]} 6. bxc3 {[%clk 0:02:54]}  c5 {[%clk 0:02:54]} 7. a4 {[%clk 0:02:53]}  Qa5 {[%clk 0:02:48]} 8. Bd2 {[%clk 0:02:52]}  Nbc6 {[%clk 0:02:43]} 9. Nf3 {[%clk 0:02:52]}  Bd7 {[%clk 0:02:25]} 10. Bb5 {[%clk 0:02:50]}  a6 {[%clk 0:02:20]} 11. Be2 {[%clk 0:02:46]}  c4 {[%clk 0:02:16]} 12. O-O {[%clk 0:02:43]}  f6 {[%clk 0:02:14]} 13. exf6 {[%clk 0:02:39]}  gxf6 {[%clk 0:02:15]} 14. Re1 {[%clk 0:02:39]}  O-O-O {[%clk 0:02:13]} 15. Qc1 {[%clk 0:02:13]}  h5 {[%clk 0:02:08]} 16. Nh4 {[%clk 0:02:07]}  Rdg8 {[%clk 0:02:02]} 17. Qa3 {[%clk 0:02:01]}  Ng6 {[%clk 0:01:54]} 18. Nxg6 {[%clk 0:01:57]}  Rxg6 {[%clk 0:01:55]} 19. Qd6 {[%clk 0:01:34]}  Qc7 {[%clk 0:01:36]} 20. Qxc7+ {[%clk 0:01:32]}  Kxc7 {[%clk 0:01:36]} 21. Bf3 {[%clk 0:01:30]}  Kd6 {[%clk 0:01:03]} 22. Rad1 {[%clk 0:01:12]}  e5 {[%clk 0:00:51]} 23. dxe5+ {[%clk 0:01:11]}  fxe5 {[%clk 0:00:52]} 24. Bc1 {[%clk 0:01:08]}  Be6 {[%clk 0:00:49]} 25. Ba3+ {[%clk 0:01:08]}  Kc7 {[%clk 0:00:49]} 26. Bxd5 {[%clk 0:01:07]}  Rd8 {[%clk 0:00:47]} 27. Bxe6 {[%clk 0:00:43]}  Rxd1 {[%clk 0:00:46]} 28. Rxd1 {[%clk 0:00:43]}  Rxe6 {[%clk 0:00:47]} 29. Kf1 {[%clk 0:00:42]}  b5 {[%clk 0:00:30]} 30. axb5 {[%clk 0:00:42]}  axb5 {[%clk 0:00:31]} 31. Ke2 {[%clk 0:00:41]}  Nd8 {[%clk 0:00:26]} 32. Rd5 {[%clk 0:00:37]}  Ra6 {[%clk 0:00:18]} 33. Bb4 {[%clk 0:00:31]}  Nc6 {[%clk 0:00:14]} 34. Rxb5 {[%clk 0:00:31]}  Ra2 {[%clk 0:00:14]} 35. Kd2 {[%clk 0:00:31]}  Kd7 {[%clk 0:00:14]} 36. Rc5 {[%clk 0:00:30]}  Ra1 {[%clk 0:00:14]} 37. Rxc4 {[%clk 0:00:30]}  Rg1 {[%clk 0:00:13]} 38. g3 {[%clk 0:00:29]}  Rg2 {[%clk 0:00:14]} 39. Ke3 {[%clk 0:00:28]}  Rxh2 {[%clk 0:00:14]} 40. Rh4 {[%clk 0:00:28]}  Rxh4 {[%clk 0:00:13]} 41. gxh4 {[%clk 0:00:29]}  Ke6 {[%clk 0:00:13]} 42. Ke4 {[%clk 0:00:25]}  Nb8 {[%clk 0:00:13]} 43. c4 {[%clk 0:00:24]}  Nd7 {[%clk 0:00:13]} 44. Bc3 {[%clk 0:00:24]}  Nc5+ {[%clk 0:00:11]} 45. Ke3 {[%clk 0:00:24]}  Kf5 {[%clk 0:00:12]} 46. Bb4 {[%clk 0:00:23]}  Na6 {[%clk 0:00:12]} 47. Bd6 {[%clk 0:00:23]}  Ke6 {[%clk 0:00:12]} 48. c5 {[%clk 0:00:22]}  Kd5 {[%clk 0:00:12]} 49. f4 {[%clk 0:00:21]}  exf4+ {[%clk 0:00:12]} 50. Kxf4 {[%clk 0:00:21]}  Nb4 {[%clk 0:00:13]} 51. Kg5 {[%clk 0:00:21]}  Nxc2 {[%clk 0:00:13]} 52. Kxh5 {[%clk 0:00:21]}  Ke6 {[%clk 0:00:12]} 53. Kg6 {[%clk 0:00:21]}  Ne3 {[%clk 0:00:11]} 54. h5 {[%clk 0:00:21]}  Ng4 {[%clk 0:00:11]} 55. h6 {[%clk 0:00:21]}  Nxh6 {[%clk 0:00:09]} 56. Kxh6 {[%clk 0:00:21]} 1-0


[Site "https://www.chess.com"]

[Event "Titled Tuesday Blitz April 19 Late 2022"]
[White "Hernandez Bermudez, Ulises Eduardo"]
[Black "Bas Mas, Jose Joaquin"]
[WhiteFideId "3902510"]
[BlackFideId "22219064"]
[WhiteElo "2056"]
[BlackElo "2212"]
[Result "1-0"]
[Round "09"]
[TimeControl "180+1"]
[Date "2022.04.19"]
[WhiteClock "0:01:09"]
[BlackClock "0:00:17"]

1. e4 {[%clk 0:03:00]}  c5 {[%clk 0:03:00]} 2. c3 {[%clk 0:03:00]}  d5 {[%clk 0:02:59]} 3. exd5 {[%clk 0:03:00]}  Qxd5 {[%clk 0:02:59]} 4. d4 {[%clk 0:03:01]}  Nf6 {[%clk 0:02:59]} 5. Nf3 {[%clk 0:03:01]}  e6 {[%clk 0:02:59]} 6. Be2 {[%clk 0:03:01]}  Nc6 {[%clk 0:02:58]} 7. Na3 {[%clk 0:03:00]}  Be7 {[%clk 0:02:56]} 8. Nc2 {[%clk 0:03:00]}  O-O {[%clk 0:02:54]} 9. O-O {[%clk 0:02:59]}  a6 {[%clk 0:02:40]} 10. Be3 {[%clk 0:02:56]}  c4 {[%clk 0:02:34]} 11. Bf4 {[%clk 0:02:50]}  b5 {[%clk 0:02:30]} 12. a4 {[%clk 0:02:47]}  Bb7 {[%clk 0:02:26]} 13. axb5 {[%clk 0:02:47]}  axb5 {[%clk 0:02:26]} 14. Qd2 {[%clk 0:02:46]}  Ne4 {[%clk 0:02:24]} 15. Qe3 {[%clk 0:02:43]}  f5 {[%clk 0:02:19]} 16. Qc1 {[%clk 0:02:24]}  Rxa1 {[%clk 0:02:14]} 17. Qxa1 {[%clk 0:02:25]}  Ra8 {[%clk 0:02:13]} 18. Qc1 {[%clk 0:02:24]}  Qd8 {[%clk 0:02:02]} 19. Ne5 {[%clk 0:02:22]}  Nxe5 {[%clk 0:02:00]} 20. Bxe5 {[%clk 0:02:22]}  Bd6 {[%clk 0:01:54]} 21. Bxd6 {[%clk 0:02:12]}  Qxd6 {[%clk 0:01:53]} 22. Na3 {[%clk 0:02:12]}  Bc6 {[%clk 0:01:51]} 23. Bf3 {[%clk 0:02:03]}  Re8 {[%clk 0:01:38]} 24. Re1 {[%clk 0:02:03]}  Qd7 {[%clk 0:01:37]} 25. Nc2 {[%clk 0:02:00]}  Bb7 {[%clk 0:01:16]} 26. Nb4 {[%clk 0:01:56]}  h6 {[%clk 0:01:13]} 27. b3 {[%clk 0:01:45]}  cxb3 {[%clk 0:01:09]} 28. Qb2 {[%clk 0:01:45]}  Bd5 {[%clk 0:01:07]} 29. Bxe4 {[%clk 0:01:45]}  fxe4 {[%clk 0:00:59]} 30. Nxd5 {[%clk 0:01:40]}  exd5 {[%clk 0:00:34]} 31. Qxb3 {[%clk 0:01:39]}  Rc8 {[%clk 0:00:35]} 32. Rxe4 {[%clk 0:01:36]}  Rxc3 {[%clk 0:00:27]} 33. Qxc3 {[%clk 0:01:24]}  dxe4 {[%clk 0:00:27]} 34. Kf1 {[%clk 0:01:21]}  Qd5 {[%clk 0:00:23]} 35. Ke2 {[%clk 0:01:21]}  Kh7 {[%clk 0:00:20]} 36. Ke3 {[%clk 0:01:20]}  Kg6 {[%clk 0:00:20]} 37. Qc2 {[%clk 0:01:20]}  Kf6 {[%clk 0:00:18]} 38. Qxe4 {[%clk 0:01:19]}  Qxe4+ {[%clk 0:00:18]} 39. Kxe4 {[%clk 0:01:19]}  Ke6 {[%clk 0:00:19]} 40. d5+ {[%clk 0:01:19]}  Kd6 {[%clk 0:00:19]} 41. Kd4 {[%clk 0:01:19]}  b4 {[%clk 0:00:19]} 42. Kc4 {[%clk 0:01:19]}  b3 {[%clk 0:00:20]} 43. Kxb3 {[%clk 0:01:19]}  Kxd5 {[%clk 0:00:21]} 44. Kc3 {[%clk 0:01:20]}  Ke4 {[%clk 0:00:21]} 45. Kd2 {[%clk 0:01:19]}  g5 {[%clk 0:00:20]} 46. Ke2 {[%clk 0:01:20]}  h5 {[%clk 0:00:20]} 47. f3+ {[%clk 0:01:19]}  Kf4 {[%clk 0:00:20]} 48. g3+ {[%clk 0:01:18]}  Kf5 {[%clk 0:00:20]} 49. Kd3 {[%clk 0:01:15]}  h4 {[%clk 0:00:19]} 50. Ke3 {[%clk 0:01:12]}  Ke5 {[%clk 0:00:19]} 51. gxh4 {[%clk 0:01:09]}  gxh4 {[%clk 0:00:18]} 52. h3 {[%clk 0:01:09]}  Kf5 {[%clk 0:00:14]} 53. f4 {[%clk 0:01:09]}  Kf6 {[%clk 0:00:15]} 54. Ke4 {[%clk 0:01:08]}  Ke6 {[%clk 0:00:15]} 55. f5+ {[%clk 0:01:09]}  Kf6 {[%clk 0:00:15]} 56. Kf4 {[%clk 0:01:09]}  Kf7 {[%clk 0:00:16]} 57. Kg5 {[%clk 0:01:09]}  Kg7 {[%clk 0:00:16]} 58. Kxh4 {[%clk 0:01:09]}  Kh6 {[%clk 0:00:17]} 59. Kg4 {[%clk 0:01:09]}  Kg7 {[%clk 0:00:17]} 60. Kg5 {[%clk 0:01:09]}  Kf7 {[%clk 0:00:17]} 61. f6 {[%clk 0:01:09]} 1-0


[Site "https://www.chess.com"]

[Event "Titled Tuesday Blitz April 19 Late 2022"]
[White "Hnydiuk, Aleksander"]
[Black "Demchenko, Anton"]
[WhiteFideId "1109057"]
[BlackFideId "4160258"]
[WhiteElo "2374"]
[BlackElo "2539"]
[Result "1-0"]
[Round "09"]
[TimeControl "180+1"]
[Date "2022.04.19"]
[WhiteClock "0:00:07"]
[BlackClock "0:00:01"]

1. e4 {[%clk 0:03:00]}  e5 {[%clk 0:02:59]} 2. Nf3 {[%clk 0:03:01]}  Nc6 {[%clk 0:03:00]} 3. d4 {[%clk 0:03:01]}  exd4 {[%clk 0:03:00]} 4. Nxd4 {[%clk 0:03:02]}  Bc5 {[%clk 0:03:00]} 5. Nb3 {[%clk 0:02:59]}  Bb6 {[%clk 0:03:00]} 6. Nc3 {[%clk 0:02:59]}  d6 {[%clk 0:03:00]} 7. Qe2 {[%clk 0:02:59]}  a5 {[%clk 0:02:59]} 8. Nd5 {[%clk 0:02:46]}  Ba7 {[%clk 0:02:34]} 9. Be3 {[%clk 0:02:46]}  a4 {[%clk 0:02:28]} 10. Nd2 {[%clk 0:02:46]}  Nge7 {[%clk 0:02:23]} 11. Bxa7 {[%clk 0:02:40]}  Rxa7 {[%clk 0:02:23]} 12. Qe3 {[%clk 0:02:25]}  a3 {[%clk 0:02:19]} 13. b3 {[%clk 0:02:23]}  O-O {[%clk 0:02:17]} 14. O-O-O {[%clk 0:02:13]}  Re8 {[%clk 0:01:35]} 15. Nc4 {[%clk 0:01:58]}  b5 {[%clk 0:01:21]} 16. Ne5 {[%clk 0:01:43]}  Nxd5 {[%clk 0:01:11]} 17. Rxd5 {[%clk 0:01:14]}  Rxe5 {[%clk 0:01:11]} 18. Bxb5 {[%clk 0:01:14]}  Qf6 {[%clk 0:00:23]} 19. Bxc6 {[%clk 0:01:10]}  Ra6 {[%clk 0:00:24]} 20. Qc3 {[%clk 0:00:53]}  Qxf2 {[%clk 0:00:09]} 21. Qxe5 {[%clk 0:00:49]}  Be6 {[%clk 0:00:06]} 22. Qd4 {[%clk 0:00:38]}  Qf4+ {[%clk 0:00:03]} 23. Qd2 {[%clk 0:00:38]}  Qf6 {[%clk 0:00:03]} 24. Qd4 {[%clk 0:00:32]}  Qf4+ {[%clk 0:00:03]} 25. Kb1 {[%clk 0:00:25]}  Rxc6 {[%clk 0:00:03]} 26. Rb5 {[%clk 0:00:25]}  h6 {[%clk 0:00:03]} 27. Rd1 {[%clk 0:00:18]}  Qg4 {[%clk 0:00:03]} 28. g3 {[%clk 0:00:13]}  Qe2 {[%clk 0:00:02]} 29. Qd3 {[%clk 0:00:13]}  Qxh2 {[%clk 0:00:02]} 30. Rb8+ {[%clk 0:00:12]}  Kh7 {[%clk 0:00:02]} 31. e5+ {[%clk 0:00:13]}  g6 {[%clk 0:00:03]} 32. Qe4 {[%clk 0:00:09]}  Rc5 {[%clk 0:00:01]} 33. exd6 {[%clk 0:00:07]}  Bf5 {[%clk 0:00:01]} 34. Rh8+ {[%clk 0:00:06]}  Kxh8 {[%clk 0:00:01]} 35. Qd4+ {[%clk 0:00:07]}  Kh7 {[%clk 0:00:01]} 36. Qxc5 {[%clk 0:00:07]} 1-0


[Site "https://www.chess.com"]

[Event "Titled Tuesday Blitz April 19 Late 2022"]
[White "Isajevsky, Anton"]
[Black "Kosteniuk, Alexandra"]
[WhiteFideId "4142500"]
[BlackFideId "4128125"]
[WhiteElo "2510"]
[BlackElo "2469"]
[Result "0-1"]
[Round "09"]
[TimeControl "180+1"]
[Date "2022.04.19"]
[WhiteClock "0:00:07"]
[BlackClock "0:00:12"]

1. c4 {[%clk 0:03:00]}  e5 {[%clk 0:02:59]} 2. g3 {[%clk 0:03:00]}  Nf6 {[%clk 0:02:58]} 3. Bg2 {[%clk 0:03:00]}  d5 {[%clk 0:02:58]} 4. cxd5 {[%clk 0:03:00]}  Nxd5 {[%clk 0:02:59]} 5. Nf3 {[%clk 0:03:00]}  Nc6 {[%clk 0:02:58]} 6. O-O {[%clk 0:03:00]}  Nb6 {[%clk 0:02:59]} 7. b3 {[%clk 0:03:00]}  Be7 {[%clk 0:02:59]} 8. Bb2 {[%clk 0:03:00]}  f6 {[%clk 0:02:59]} 9. Nc3 {[%clk 0:02:51]}  O-O {[%clk 0:02:58]} 10. Rc1 {[%clk 0:02:51]}  Bg4 {[%clk 0:02:56]} 11. h3 {[%clk 0:02:42]}  Be6 {[%clk 0:02:47]} 12. Kh2 {[%clk 0:02:28]}  a5 {[%clk 0:02:28]} 13. d3 {[%clk 0:02:22]}  Nb4 {[%clk 0:02:19]} 14. a3 {[%clk 0:02:11]}  N4d5 {[%clk 0:02:19]} 15. Ne4 {[%clk 0:02:10]}  c6 {[%clk 0:02:19]} 16. Nc5 {[%clk 0:01:58]}  Bxc5 {[%clk 0:02:16]} 17. Rxc5 {[%clk 0:01:59]}  Qe7 {[%clk 0:02:15]} 18. Rc1 {[%clk 0:01:46]}  Rfd8 {[%clk 0:02:09]} 19. Qc2 {[%clk 0:01:46]}  Bf7 {[%clk 0:02:04]} 20. Nd2 {[%clk 0:01:39]}  Nc7 {[%clk 0:01:59]} 21. Qc5 {[%clk 0:01:06]}  Qxc5 {[%clk 0:01:51]} 22. Rxc5 {[%clk 0:01:06]}  Nd7 {[%clk 0:01:51]} 23. Rcc1 {[%clk 0:00:44]}  Nb5 {[%clk 0:01:51]} 24. Rfe1 {[%clk 0:00:29]}  Nd4 {[%clk 0:01:49]} 25. b4 {[%clk 0:00:20]}  axb4 {[%clk 0:01:47]} 26. axb4 {[%clk 0:00:21]}  Ra2 {[%clk 0:01:47]} 27. Bxd4 {[%clk 0:00:21]}  exd4 {[%clk 0:01:48]} 28. Ne4 {[%clk 0:00:18]}  Ne5 {[%clk 0:01:01]} 29. b5 {[%clk 0:00:10]}  cxb5 {[%clk 0:00:57]} 30. Rb1 {[%clk 0:00:10]}  Be8 {[%clk 0:00:52]} 31. Nc5 {[%clk 0:00:05]}  Rc2 {[%clk 0:00:34]} 32. Nxb7 {[%clk 0:00:05]}  Rb8 {[%clk 0:00:34]} 33. Rec1 {[%clk 0:00:04]}  Rxe2 {[%clk 0:00:29]} 34. Kg1 {[%clk 0:00:03]}  Nxd3 {[%clk 0:00:28]} 35. Rc7 {[%clk 0:00:03]}  Kf8 {[%clk 0:00:21]} 36. Bf1 {[%clk 0:00:03]}  Re7 {[%clk 0:00:20]} 37. Rxe7 {[%clk 0:00:03]}  Kxe7 {[%clk 0:00:21]} 38. Na5 {[%clk 0:00:03]}  Ne5 {[%clk 0:00:19]} 39. f4 {[%clk 0:00:03]}  Nf3+ {[%clk 0:00:18]} 40. Kf2 {[%clk 0:00:03]}  Nd2 {[%clk 0:00:19]} 41. Re1+ {[%clk 0:00:03]}  Kd6 {[%clk 0:00:19]} 42. Bd3 {[%clk 0:00:04]}  Bg6 {[%clk 0:00:14]} 43. Bxg6 {[%clk 0:00:02]}  hxg6 {[%clk 0:00:15]} 44. Rd1 {[%clk 0:00:03]}  Ne4+ {[%clk 0:00:14]} 45. Kf3 {[%clk 0:00:03]}  Nc3 {[%clk 0:00:14]} 46. Rxd4+ {[%clk 0:00:03]}  Kc5 {[%clk 0:00:14]} 47. Rd7 {[%clk 0:00:03]}  b4 {[%clk 0:00:14]} 48. Rc7+ {[%clk 0:00:03]}  Kb5 {[%clk 0:00:14]} 49. Nc6 {[%clk 0:00:03]}  Rb6 {[%clk 0:00:12]} 50. Nd4+ {[%clk 0:00:03]}  Ka5 {[%clk 0:00:10]} 51. Ra7+ {[%clk 0:00:03]}  Ra6 {[%clk 0:00:10]} 52. Nc6+ {[%clk 0:00:04]}  Kb6 {[%clk 0:00:11]} 53. Rxa6+ {[%clk 0:00:04]}  Kxa6 {[%clk 0:00:11]} 54. Nxb4+ {[%clk 0:00:05]}  Kb5 {[%clk 0:00:12]} 55. Nd3 {[%clk 0:00:06]}  Kc4 {[%clk 0:00:12]} 56. Nf2 {[%clk 0:00:05]}  f5 {[%clk 0:00:11]} 57. g4 {[%clk 0:00:06]}  Kd4 {[%clk 0:00:11]} 58. g5 {[%clk 0:00:05]}  Nd5 {[%clk 0:00:09]} 59. h4 {[%clk 0:00:05]}  Nc3 {[%clk 0:00:09]} 60. Nh1 {[%clk 0:00:05]}  Ne4 {[%clk 0:00:08]} 61. Ng3 {[%clk 0:00:05]}  Nxg3 {[%clk 0:00:09]} 62. Kxg3 {[%clk 0:00:05]}  Ke3 {[%clk 0:00:09]} 63. h5 {[%clk 0:00:05]}  gxh5 {[%clk 0:00:09]} 64. g6 {[%clk 0:00:06]}  Ke4 {[%clk 0:00:10]} 65. Kh4 {[%clk 0:00:06]}  Kxf4 {[%clk 0:00:10]} 66. Kxh5 {[%clk 0:00:07]}  Ke5 {[%clk 0:00:11]} 67. Kg5 {[%clk 0:00:07]}  Ke6 {[%clk 0:00:11]} 68. Kf4 {[%clk 0:00:07]}  Kf6 {[%clk 0:00:12]} 0-1


[Site "https://www.chess.com"]

[Event "Titled Tuesday Blitz April 19 Late 2022"]
[White "Iskusnyh, Sergei"]
[Black "Dilmukhametov, Artur"]
[WhiteFideId "4120027"]
[BlackFideId "24179922"]
[WhiteElo "2492"]
[BlackElo "2244"]
[Result "1-0"]
[Round "09"]
[TimeControl "180+1"]
[Date "2022.04.19"]
[WhiteClock "0:00:06"]
[BlackClock "0:00:12"]

1. d4 {[%clk 0:03:00]}  d5 {[%clk 0:02:57]} 2. c4 {[%clk 0:03:01]}  c6 {[%clk 0:02:55]} 3. Nf3 {[%clk 0:03:01]}  Nf6 {[%clk 0:02:52]} 4. Qb3 {[%clk 0:02:59]}  dxc4 {[%clk 0:02:52]} 5. Qxc4 {[%clk 0:02:59]}  Bf5 {[%clk 0:02:51]} 6. g3 {[%clk 0:02:58]}  e6 {[%clk 0:02:51]} 7. Bg2 {[%clk 0:02:55]}  Nbd7 {[%clk 0:02:50]} 8. O-O {[%clk 0:02:51]}  Be7 {[%clk 0:02:50]} 9. e3 {[%clk 0:02:50]}  O-O {[%clk 0:02:50]} 10. Rd1 {[%clk 0:02:48]}  Rc8 {[%clk 0:02:47]} 11. Qe2 {[%clk 0:02:43]}  Qb6 {[%clk 0:02:41]} 12. Nc3 {[%clk 0:02:28]}  Ne4 {[%clk 0:02:41]} 13. Ne1 {[%clk 0:02:14]}  Ndf6 {[%clk 0:02:36]} 14. f3 {[%clk 0:02:10]}  Nxc3 {[%clk 0:02:33]} 15. bxc3 {[%clk 0:02:11]}  c5 {[%clk 0:02:33]} 16. e4 {[%clk 0:02:06]}  Bg6 {[%clk 0:02:31]} 17. Be3 {[%clk 0:02:04]}  cxd4 {[%clk 0:02:22]} 18. cxd4 {[%clk 0:02:03]}  Rc3 {[%clk 0:02:17]} 19. Rab1 {[%clk 0:01:53]}  Qc7 {[%clk 0:02:14]} 20. Rdc1 {[%clk 0:01:46]}  Rxc1 {[%clk 0:01:58]} 21. Rxc1 {[%clk 0:01:45]}  Qa5 {[%clk 0:01:58]} 22. Nd3 {[%clk 0:01:39]}  Nd7 {[%clk 0:01:39]} 23. Qd2 {[%clk 0:01:20]}  Qd8 {[%clk 0:01:20]} 24. Qc3 {[%clk 0:01:12]}  Bd6 {[%clk 0:01:16]} 25. Nf4 {[%clk 0:01:03]}  Nb6 {[%clk 0:01:08]} 26. Nxg6 {[%clk 0:00:40]}  hxg6 {[%clk 0:01:08]} 27. Qa5 {[%clk 0:00:41]}  Qb8 {[%clk 0:01:01]} 28. e5 {[%clk 0:00:39]}  Bc7 {[%clk 0:00:43]} 29. Bf2 {[%clk 0:00:28]}  Nd5 {[%clk 0:00:36]} 30. Qb5 {[%clk 0:00:28]}  Bb6 {[%clk 0:00:24]} 31. f4 {[%clk 0:00:26]}  Rd8 {[%clk 0:00:24]} 32. Bf3 {[%clk 0:00:23]}  a6 {[%clk 0:00:19]} 33. Qb3 {[%clk 0:00:22]}  Qa7 {[%clk 0:00:19]} 34. Rc4 {[%clk 0:00:20]}  Ba5 {[%clk 0:00:18]} 35. Bxd5 {[%clk 0:00:18]}  Rxd5 {[%clk 0:00:16]} 36. Rc8+ {[%clk 0:00:18]}  Rd8 {[%clk 0:00:16]} 37. Rxd8+ {[%clk 0:00:17]}  Bxd8 {[%clk 0:00:16]} 38. d5 {[%clk 0:00:17]}  Qb8 {[%clk 0:00:12]} 39. dxe6 {[%clk 0:00:18]}  fxe6 {[%clk 0:00:12]} 40. Qxe6+ {[%clk 0:00:18]}  Kh7 {[%clk 0:00:13]} 41. h4 {[%clk 0:00:16]}  Qc7 {[%clk 0:00:14]} 42. h5 {[%clk 0:00:13]}  Qc1+ {[%clk 0:00:13]} 43. Kh2 {[%clk 0:00:12]}  gxh5 {[%clk 0:00:14]} 44. Qf5+ {[%clk 0:00:12]}  Kg8 {[%clk 0:00:14]} 45. Qxh5 {[%clk 0:00:11]}  Qc2 {[%clk 0:00:14]} 46. Qe8+ {[%clk 0:00:10]}  Kh7 {[%clk 0:00:14]} 47. Kg2 {[%clk 0:00:10]}  Qe4+ {[%clk 0:00:14]} 48. Kg1 {[%clk 0:00:10]}  Qb1+ {[%clk 0:00:14]} 49. Kg2 {[%clk 0:00:09]}  Qe4+ {[%clk 0:00:13]} 50. Kh2 {[%clk 0:00:09]}  Qe2 {[%clk 0:00:11]} 51. Kg1 {[%clk 0:00:08]}  Qd1+ {[%clk 0:00:11]} 52. Kg2 {[%clk 0:00:08]}  Qd5+ {[%clk 0:00:11]} 53. Kh3 {[%clk 0:00:05]}  Qh1+ {[%clk 0:00:09]} 54. Kg4 {[%clk 0:00:06]}  Qd1+ {[%clk 0:00:08]} 55. Kf5 {[%clk 0:00:06]}  Qc2+ {[%clk 0:00:03]} 56. Ke6 {[%clk 0:00:06]}  Qxa2+ {[%clk 0:00:03]} 57. Kd7 {[%clk 0:00:05]}  Qxf2 {[%clk 0:00:03]} 58. Qh5+ {[%clk 0:00:04]}  Kg8 {[%clk 0:00:03]} 59. Qe8+ {[%clk 0:00:04]}  Kh7 {[%clk 0:00:03]} 60. Kxd8 {[%clk 0:00:05]}  Qb6+ {[%clk 0:00:02]} 61. Kc8 {[%clk 0:00:04]}  Qc5+ {[%clk 0:00:03]} 62. Kb8 {[%clk 0:00:04]}  Qc3 {[%clk 0:00:01]} 63. e6 {[%clk 0:00:04]}  Qxg3 {[%clk 0:00:01]} 64. e7 {[%clk 0:00:03]}  Qxf4+ {[%clk 0:00:01]} 65. Ka8 {[%clk 0:00:04]}  Qf6 {[%clk 0:00:02]} 66. Qh5+ {[%clk 0:00:04]}  Qh6 {[%clk 0:00:02]} 67. Qxh6+ {[%clk 0:00:04]}  Kxh6 {[%clk 0:00:03]} 68. e8=Q {[%clk 0:00:04]}  g5 {[%clk 0:00:03]} 69. Qf7 {[%clk 0:00:04]}  g4 {[%clk 0:00:03]} 70. Qf6+ {[%clk 0:00:05]}  Kh5 {[%clk 0:00:04]} 71. Qf4 {[%clk 0:00:04]}  Kh4 {[%clk 0:00:05]} 72. Kxb7 {[%clk 0:00:04]}  Kh3 {[%clk 0:00:05]} 73. Qh6+ {[%clk 0:00:04]}  Kg2 {[%clk 0:00:05]} 74. Kxa6 {[%clk 0:00:03]}  g3 {[%clk 0:00:06]} 75. Qf4 {[%clk 0:00:03]}  Kh3 {[%clk 0:00:05]} 76. Qf3 {[%clk 0:00:03]}  Kh2 {[%clk 0:00:05]} 77. Qf4 {[%clk 0:00:03]}  Kh3 {[%clk 0:00:05]} 78. Qf1+ {[%clk 0:00:03]}  Kh2 {[%clk 0:00:06]} 79. Kb5 {[%clk 0:00:03]}  g2 {[%clk 0:00:06]} 80. Qf2 {[%clk 0:00:03]}  Kh1 {[%clk 0:00:07]} 81. Qh4+ {[%clk 0:00:03]}  Kg1 {[%clk 0:00:07]} 82. Kc4 {[%clk 0:00:04]}  Kf1 {[%clk 0:00:08]} 83. Qf4+ {[%clk 0:00:04]}  Ke2 {[%clk 0:00:08]} 84. Qg3 {[%clk 0:00:05]}  Kf1 {[%clk 0:00:08]} 85. Qf3+ {[%clk 0:00:05]}  Kg1 {[%clk 0:00:09]} 86. Kd3 {[%clk 0:00:05]}  Kh2 {[%clk 0:00:10]} 87. Qf4+ {[%clk 0:00:05]}  Kh1 {[%clk 0:00:10]} 88. Qh4+ {[%clk 0:00:05]}  Kg1 {[%clk 0:00:11]} 89. Ke3 {[%clk 0:00:05]}  Kf1 {[%clk 0:00:12]} 90. Qf2# {[%clk 0:00:06]} 1-0


[Site "https://www.chess.com"]

[Event "Titled Tuesday Blitz April 19 Late 2022"]
[White "Janaszak, Dawid"]
[Black "Yoo, Christopher Woojin"]
[WhiteFideId "1119206"]
[BlackFideId "30909694"]
[WhiteElo "2199"]
[BlackElo "2105"]
[Result "0-1"]
[Round "09"]
[TimeControl "180+1"]
[Date "2022.04.19"]
[WhiteClock "0:00:04"]
[BlackClock "0:00:05"]

1. e4 {[%clk 0:03:00]}  Nf6 {[%clk 0:02:58]} 2. e5 {[%clk 0:02:58]}  Nd5 {[%clk 0:02:58]} 3. d4 {[%clk 0:02:57]}  d6 {[%clk 0:02:59]} 4. Nf3 {[%clk 0:02:58]}  dxe5 {[%clk 0:02:59]} 5. Nxe5 {[%clk 0:02:58]}  c6 {[%clk 0:03:00]} 6. Bd3 {[%clk 0:02:52]}  g6 {[%clk 0:02:48]} 7. O-O {[%clk 0:02:34]}  Bg7 {[%clk 0:02:48]} 8. f4 {[%clk 0:02:33]}  Nd7 {[%clk 0:02:33]} 9. Qe1 {[%clk 0:02:28]}  O-O {[%clk 0:02:25]} 10. c4 {[%clk 0:02:23]}  N5f6 {[%clk 0:02:15]} 11. Be3 {[%clk 0:02:20]}  Nxe5 {[%clk 0:02:05]} 12. fxe5 {[%clk 0:02:20]}  Ng4 {[%clk 0:02:05]} 13. Nc3 {[%clk 0:02:15]}  c5 {[%clk 0:01:50]} 14. Nd5 {[%clk 0:01:53]}  Nxe3 {[%clk 0:01:49]} 15. Qxe3 {[%clk 0:01:52]}  cxd4 {[%clk 0:01:50]} 16. Qg3 {[%clk 0:01:42]}  Be6 {[%clk 0:01:39]} 17. Be4 {[%clk 0:01:34]}  Rc8 {[%clk 0:01:18]} 18. b3 {[%clk 0:01:34]}  b5 {[%clk 0:01:18]} 19. Nf4 {[%clk 0:01:21]}  bxc4 {[%clk 0:01:06]} 20. Nxe6 {[%clk 0:01:21]}  fxe6 {[%clk 0:01:07]} 21. Rxf8+ {[%clk 0:01:16]}  Qxf8 {[%clk 0:01:02]} 22. Rf1 {[%clk 0:01:10]}  Qe8 {[%clk 0:00:57]} 23. bxc4 {[%clk 0:01:03]}  Rxc4 {[%clk 0:00:57]} 24. Qb3 {[%clk 0:00:52]}  Qc8 {[%clk 0:00:56]} 25. Bb7 {[%clk 0:00:36]}  Qc7 {[%clk 0:00:50]} 26. Ba6 {[%clk 0:00:34]}  Rc6 {[%clk 0:00:43]} 27. Qf3 {[%clk 0:00:28]}  Kh8 {[%clk 0:00:09]} 28. Qf7 {[%clk 0:00:26]}  Qd8 {[%clk 0:00:08]} 29. Bd3 {[%clk 0:00:21]}  Rc3 {[%clk 0:00:04]} 30. Be4 {[%clk 0:00:19]}  d3 {[%clk 0:00:03]} 31. Bxg6 {[%clk 0:00:17]}  d2 {[%clk 0:00:03]} 32. Bh5 {[%clk 0:00:16]}  Rc1 {[%clk 0:00:03]} 33. Bd1 {[%clk 0:00:16]}  Bxe5 {[%clk 0:00:04]} 34. Qh5 {[%clk 0:00:11]}  Bf6 {[%clk 0:00:04]} 35. h3 {[%clk 0:00:07]}  Rc4 {[%clk 0:00:02]} 36. Qe2 {[%clk 0:00:06]}  Qd4+ {[%clk 0:00:02]} 37. Kh1 {[%clk 0:00:06]}  Rc6 {[%clk 0:00:01]} 38. Bb3 {[%clk 0:00:04]}  Rd6 {[%clk 0:00:02]} 39. Bc2 {[%clk 0:00:03]}  Qe5 {[%clk 0:00:02]} 40. Qg4 {[%clk 0:00:02]}  Qg5 {[%clk 0:00:02]} 41. Qe4 {[%clk 0:00:02]}  Qh6 {[%clk 0:00:02]} 42. Qa8+ {[%clk 0:00:02]}  Kg7 {[%clk 0:00:02]} 43. Qe4 {[%clk 0:00:03]}  Qg6 {[%clk 0:00:02]} 44. Qc4 {[%clk 0:00:03]}  Qg3 {[%clk 0:00:02]} 45. Qe4 {[%clk 0:00:03]}  Qg6 {[%clk 0:00:02]} 46. Qc4 {[%clk 0:00:02]}  Qg5 {[%clk 0:00:03]} 47. Qe4 {[%clk 0:00:03]}  Qh6 {[%clk 0:00:02]} 48. Qc4 {[%clk 0:00:03]}  Rd4 {[%clk 0:00:02]} 49. Qc6 {[%clk 0:00:03]}  Qg5 {[%clk 0:00:02]} 50. Qf3 {[%clk 0:00:04]}  Rd6 {[%clk 0:00:01]} 51. Qe4 {[%clk 0:00:04]}  Rd4 {[%clk 0:00:02]} 52. Qxh7+ {[%clk 0:00:04]}  Kf8 {[%clk 0:00:02]} 53. Qh8+ {[%clk 0:00:04]}  Kf7 {[%clk 0:00:03]} 54. Qh7+ {[%clk 0:00:05]}  Ke8 {[%clk 0:00:03]} 55. Qe4 {[%clk 0:00:03]}  Rxe4 {[%clk 0:00:03]} 56. Bxe4 {[%clk 0:00:04]}  Qg3 {[%clk 0:00:03]} 57. Bf3 {[%clk 0:00:04]}  Be5 {[%clk 0:00:03]} 58. Bh5+ {[%clk 0:00:05]}  Kd7 {[%clk 0:00:04]} 59. Kg1 {[%clk 0:00:05]}  Qe3+ {[%clk 0:00:04]} 60. Kh1 {[%clk 0:00:05]}  Bg3 {[%clk 0:00:04]} 61. Bf3 {[%clk 0:00:04]}  Bf2 {[%clk 0:00:04]} 62. h4 {[%clk 0:00:04]}  Qe1 {[%clk 0:00:05]} 0-1


[Site "https://www.chess.com"]